fUSD/lending_fUSD_20241205
["ID","MTS","AMOUNT","RATE_DAILY","PERIOD"]
[344370899,1733382637668,-500.0,9.669e-05,2]
[344370901,1733382637677,-500.0,9.669e-05,2]
[344370903,1733382637686,-500.0,9.669e-05,2]
[344370905,1733382637696,-500.0,9.669e-05,2]
[344370907,1733382637705,-500.0,9.669e-05,2]
[344370909,1733382637714,-500.0,9.669e-05,2]
[344370911,1733382637723,-500.0,9.669e-05,2]
[344370913,1733382637733,-500.0,9.669e-05,2]
[344370915,1733382637742,-500.0,9.669e-05,2]
[344370917,1733382637752,-500.0,9.669e-05,2]
[344370919,1733382637761,-500.0,9.669e-05,2]
[344370921,1733382637770,-500.0,9.669e-05,2]
[344370923,1733382637780,-500.0,9.669e-05,2]
[344370925,1733382637791,-500.0,9.669e-05,2]
[344370927,1733382637800,-486.75385624,9.669e-05,2]
[344370929,1733382637809,-500.0,9.669e-05,2]
[344370931,1733382637819,-500.0,9.669e-05,2]
[344370933,1733382637828,-500.0,9.669e-05,2]
[344370935,1733382637836,-500.0,9.669e-05,2]
[344370936,1733382637846,-500.0,9.669e-05,2]
[344370938,1733382637856,-500.0,9.669e-05,2]
[344370940,1733382637865,-500.0,9.669e-05,2]
[344370942,1733382637875,-500.0,9.669e-05,2]
[344370944,1733382637884,-500.0,9.669e-05,2]
[344370946,1733382637893,-226.34461451,9.669e-05,2]
[344370948,1733382637902,-500.0,9.669e-05,2]
[344370950,1733382637911,-502.61183885,9.669e-05,2]
[344370952,1733382637920,-192.6145729,9.669e-05,2]
[344370954,1733382637929,-500.0,9.669e-05,2]
[344370956,1733382637938,-644.04,9.669e-05,2]
[344370958,1733382637948,-500.0,9.669e-05,2]
[344370960,1733382637959,-500.0,9.669e-05,2]
[344370962,1733382637974,-500.0,9.669e-05,2]
[344370964,1733382637983,-500.0,9.669e-05,2]
[344370966,1733382637992,-500.0,9.669e-05,2]
[344370968,1733382638002,-500.0,9.669e-05,2]
[344370970,1733382638011,-500.0,9.669e-05,2]
[344370972,1733382638020,-272.10045838,9.669e-05,2]
[344370974,1733382638035,-432.40151431,9.669e-05,2]
[344370996,1733382638242,-500.0,7.999e-05,2]
[344370998,1733382638251,-463.68266679,8.999e-05,2]
[344371000,1733382638261,-95.09848569,9.669e-05,2]
[344371002,1733382638270,-903.23,9.669e-05,2]
[344371004,1733382638284,-500.0,9.669e-05,2]
[344371006,1733382638294,-500.0,9.669e-05,2]
[344371008,1733382638303,-500.0,9.669e-05,2]
[344371010,1733382638312,-500.0,9.669e-05,2]
[344371013,1733382638322,-500.0,9.669e-05,2]
[344371015,1733382638331,-500.0,9.669e-05,2]
[344371017,1733382638340,-500.0,9.669e-05,2]
[344371019,1733382638349,-500.0,9.669e-05,2]
[344371021,1733382638358,-500.0,9.669e-05,2]
[344371023,1733382638368,-500.0,9.669e-05,2]
[344371025,1733382638377,-500.0,9.669e-05,2]
[344371027,1733382638386,-304.68,9.67e-05,2]
[344371029,1733382638396,-5253.67411508,9.67e-05,2]
[344371031,1733382638407,-619.03715218,9.67e-05,2]
[344371033,1733382638422,-454.01340233,9.67e-05,2]
[344371177,1733382639852,-500.0,8.521e-05,2]
[344371179,1733382639862,-500.0,8.795e-05,2]
[344371181,1733382639872,-556.88916748,9.069e-05,2]
[344371183,1733382639881,-1485.11341061,9.67e-05,2]
[344371185,1733382639892,-4019.09127962,9.67e-05,2]
[344371188,1733382639904,-315.6,9.67e-05,2]
[344371190,1733382639916,-17853.46064018,9.67e-05,2]
[344371192,1733382639927,-29999.99,9.67e-05,2]
[344371194,1733382639936,-1122.7,9.67e-05,2]
[344371196,1733382639945,-280.50635566,9.799e-05,2]
[344371198,1733382639955,-500.0,9.799e-05,2]
[344371200,1733382639967,-500.0,9.799e-05,2]
[344371202,1733382639976,-419.86498495,9.799e-05,2]
[344371204,1733382639986,-500.0,9.799e-05,2]
[344371206,1733382639996,-500.0,9.799e-05,2]
[344371208,1733382640006,-500.0,9.799e-05,2]
[344371210,1733382640015,-500.0,9.799e-05,2]
[344371212,1733382640023,-500.0,9.799e-05,2]
[344371214,1733382640037,-174.64638985,9.799e-05,2]
[344371216,1733382640047,-500.0,9.799e-05,2]
[344371218,1733382640056,-500.0,9.799e-05,2]
[344371220,1733382640064,-500.0,9.799e-05,2]
[344371222,1733382640074,-500.0,9.799e-05,2]
[344371224,1733382640083,-500.0,9.799e-05,2]
[344371226,1733382640092,-500.0,9.799e-05,2]
[344371228,1733382640101,-500.0,9.799e-05,2]
[344371230,1733382640110,-500.0,9.799e-05,2]
[344371232,1733382640119,-500.0,9.799e-05,2]
[344371234,1733382640128,-500.0,9.799e-05,2]
[344371236,1733382640137,-500.0,9.799e-05,2]
[344371238,1733382640146,-500.0,9.799e-05,2]
[344371240,1733382640155,-500.0,9.799e-05,2]
[344371242,1733382640165,-500.0,9.799e-05,2]
[344371244,1733382640174,-500.0,9.799e-05,2]
[344371246,1733382640183,-455.82927554,9.799e-05,2]
[344371247,1733382640193,-500.0,9.799e-05,2]
[344371249,1733382640202,-500.0,9.799e-05,2]
[344371251,1733382640211,-500.0,9.799e-05,2]
[344371253,1733382640220,-500.0,9.799e-05,2]
[344371255,1733382640230,-500.0,9.799e-05,2]
[344371257,1733382640239,-549.73674272,9.799e-05,2]
[344371259,1733382640248,-500.0,9.799e-05,2]
[344371261,1733382640257,-500.0,9.799e-05,2]
[344371263,1733382640266,-500.0,9.799e-05,2]
[344371265,1733382640275,-527.5,9.799e-05,2]
[344371267,1733382640288,-500.0,9.799e-05,2]
[344371269,1733382640298,-903.23,9.799e-05,2]
[344371271,1733382640307,-500.0,9.799e-05,2]
[344371273,1733382640316,-500.0,9.799e-05,2]
[344371275,1733382640326,-500.0,9.799e-05,2]
[344371277,1733382640335,-500.0,9.799e-05,2]
[344371279,1733382640346,-500.87,9.799e-05,2]
[344371281,1733382640355,-500.0,9.799e-05,2]
[344371283,1733382640365,-500.0,9.799e-05,2]
[344371285,1733382640374,-465.0591945,9.799e-05,2]
[344371287,1733382640383,-500.0,9.799e-05,2]
[344371289,1733382640393,-500.0,9.799e-05,2]
[344371291,1733382640401,-500.0,9.799e-05,2]
[344371292,1733382640411,-22549.88141621,9.8e-05,2]
[344371293,1733382640420,-205.0,9.8e-05,2]
[344371294,1733382640429,-52263.05519317,9.8e-05,2]
[344371295,1733382640442,-403.31055908,9.8e-05,2]
[344371296,1733382640453,-5097.2,9.8e-05,2]
[344371299,1733382640487,-370.44790659,9.8e-05,2]
[344371303,1733382640511,-150.0,8.521e-05,2]
[344371305,1733382640520,-138.8475,9.8e-05,2]
[344371307,1733382640536,-348.195,9.8e-05,2]
[344371524,1733382643267,-1098.0,7.862e-05,2]
[344371525,1733382643277,-1454.0,8.521e-05,2]
[344371526,1733382643286,-1454.0,8.795e-05,2]
[344371527,1733382643295,-1454.0,9.069e-05,2]
[344371528,1733382643304,-1454.0,9.343e-05,2]
[344371529,1733382643314,-1454.0,9.617e-05,2]
[344371530,1733382643323,-19036.0,9.8e-05,2]
[344371531,1733382643342,-6020.26928717,9.8e-05,2]
[344371532,1733382643354,-5991.33219874,9.8e-05,2]
[344371533,1733382643366,-3160.82085661,9.8e-05,2]
[344371605,1733382645784,-2633.1618191,8.1e-05,2]
[344371606,1733382645804,-709.973155,8.1e-05,2]
[344371607,1733382645816,-2088.089234,8.1e-05,2]
[344371608,1733382645827,-1420.8,8.1e-05,2]
[344371609,1733382645850,-3192.21561364,8.1e-05,2]
[344371610,1733382645860,-502.56,9.617e-05,2]
[344371611,1733382645870,-591.00812233,9.669e-05,2]
[344371612,1733382645879,-5909.21626403,9.8e-05,2]
[344371613,1733382645890,-7697.8,9.8e-05,2]
[344371614,1733382645901,-3968.83259089,9.8e-05,2]
[344371615,1733382645912,-101960.66390281,9.8e-05,2]
[344371616,1733382645932,-500.0,8.521e-05,2]
[344371617,1733382645941,-1427.45000002,9.8e-05,2]
[344371618,1733382645961,-4691.03335626,9.8e-05,2]
[344371620,1733382889554,301.611654,8.343e-05,7]
[344371652,1733383832067,-151.54,7.352e-05,2]
[344371654,1733383832079,-494.32,7.472e-05,2]
[344371655,1733383832092,-150.0,7.499e-05,2]
[344371656,1733383832106,-468.94088732,7.5e-05,2]
[344371657,1733383832121,-32.31911268,7.5e-05,2]
[344371658,1733383832134,-624.6683545,7.5e-05,2]
[344371659,1733383832148,-631.9731496,7.5e-05,2]
[344371660,1733383832161,-703.95041285,7.5e-05,2]
[344371661,1733383832179,-1022.839527,7.5e-05,2]
[344371662,1733383832192,-1114.28000496,7.5e-05,2]
[344371663,1733383832236,-40017.25557353,7.5e-05,2]
[344371664,1733383832250,-29142.39998373,7.5e-05,2]
[344371665,1733383832265,-1941192.73423758,7.5e-05,2]
[344371666,1733383832290,-2556.9999996,7.5e-05,2]
[344371667,1733383832302,-253.99391168,7.5e-05,2]
[344371668,1733383832320,-1110.501224,7.5e-05,2]
[344371669,1733383832361,-5791.63474344,7.5e-05,2]
[344371674,1733383832600,-404.92261432,7.5e-05,2]
[344371686,1733383838030,-19696.64518,7.5e-05,2]
[344371687,1733383838295,-6010.92935329,7.5e-05,2]
[344371688,1733383838310,-13883.53013849,7.5e-05,2]
[344371689,1733383838323,-394.11574092,7.5e-05,2]
[344371690,1733383838453,-19924.8448,7.5e-05,2]
[344371691,1733383838465,-100007.963,7.5e-05,2]
[344371692,1733383838478,-39990.868,7.5e-05,2]
[344371696,1733383839951,-3065.5099956,7.5e-05,2]
[344371697,1733383840026,-79222.06515317,7.5e-05,2]
[344371698,1733383840041,-127701.99997271,7.5e-05,2]
[344371699,1733383840053,-450.34209016,7.5e-05,2]
[344371700,1733383840089,-1489.1092902,7.5e-05,2]
[344371701,1733383840167,-1273.44158532,7.5e-05,2]
[344371702,1733383840179,-274.77143931,7.5e-05,2]
[344371709,1733383843041,-880.19117254,7.5e-05,2]
[344371710,1733383843090,-2102.81316543,7.5e-05,2]
[344371711,1733383843234,-6161.14249043,7.5e-05,2]
[344371712,1733383843246,-2264.65682179,7.5e-05,2]
[344371713,1733383843382,-3256.50652326,7.5e-05,2]
[344371714,1733383843434,-2434.31706182,7.5e-05,2]
[344371715,1733383843446,-4600.34793412,7.5e-05,2]
[344371716,1733383843460,-560.4121397,7.5e-05,2]
[344371717,1733383843472,-10392.45998308,7.5e-05,2]
[344371734,1733383845889,-438.859768,7.5e-05,2]
[344371736,1733383845901,-1195.1,7.5e-05,2]
[344371740,1733383845934,-5119.719,7.5e-05,2]
[344371741,1733383845946,-2800.2523722,7.5e-05,2]
[344371752,1733383846080,-47954.78632666,7.5e-05,2]
[344371753,1733383846092,-313.63138024,7.5e-05,2]
[344371754,1733383846103,-255.4541346,7.5e-05,2]
[344371755,1733383846333,-12615.0,7.5e-05,2]
[344371765,1733384605568,159.98,6.971e-05,2]
[344371774,1733385032189,-2015.0,7.204e-05,2]
[344371775,1733385032198,-300.0,7.276e-05,2]
[344371776,1733385032208,-177.87628316,7.277e-05,2]
[344371777,1733385032217,-350.89465745,7.277e-05,2]
[344371778,1733385032227,-2087.38905387,7.277e-05,2]
[344371779,1733385032237,-23342.83,7.277e-05,2]
[344371780,1733385032247,-177.87628315,7.389e-05,2]
[344371781,1733385032257,-150.0,7.452e-05,2]
[344371782,1733385032266,-500.0,7.473e-05,2]
[344371783,1733385032275,-500.0,7.473e-05,2]
[344371784,1733385032284,-328.20801539,7.473e-05,2]
[344371785,1733385032296,-500.0,7.473e-05,2]
[344371786,1733385032306,-500.36221749,7.473e-05,2]
[344371787,1733385032315,-502.1,7.476e-05,2]
[344371788,1733385032324,-492.59,7.476e-05,2]
[344371789,1733385032334,-496.89,7.476e-05,2]
[344371790,1733385032343,-500.96,7.476e-05,2]
[344371791,1733385032352,-496.25,7.479e-05,2]
[344371792,1733385032361,-493.89,7.486e-05,2]
[344371793,1733385032370,-150.0,7.497e-05,2]
[344371794,1733385032379,-150.0,7.498e-05,2]
[344371795,1733385032389,-150.0,7.498e-05,2]
[344371796,1733385032399,-150.0,7.498e-05,2]
[344371797,1733385032408,-150.0,7.498e-05,2]
[344371798,1733385032417,-150.0,7.498e-05,2]
[344371799,1733385032426,-150.0,7.498e-05,2]
[344371800,1733385032435,-150.0,7.498e-05,2]
[344371801,1733385032444,-150.0,7.498e-05,2]
[344371802,1733385032453,-150.0,7.498e-05,2]
[344371803,1733385032463,-150.0,7.498e-05,2]
[344371804,1733385032472,-150.0,7.498e-05,2]
[344371805,1733385032481,-150.0,7.498e-05,2]
[344371806,1733385032490,-150.0,7.498e-05,2]
[344371807,1733385032500,-150.0,7.498e-05,2]
[344371808,1733385032509,-150.0,7.498e-05,2]
[344371809,1733385032518,-150.0,7.498e-05,2]
[344371810,1733385032527,-150.0,7.498e-05,2]
[344371811,1733385032536,-150.0,7.498e-05,2]
[344371812,1733385032547,-150.0,7.498e-05,2]
[344371813,1733385032557,-150.0,7.498e-05,2]
[344371814,1733385032565,-505.1,7.5e-05,2]
[344371815,1733385032575,-45414.08435946,7.5e-05,2]
[344371817,1733385032586,-3083.84554052,7.5e-05,2]
[344371820,1733385032602,-3722.33595386,7.5e-05,2]
[344371823,1733385032619,-166683.25328273,7.5e-05,2]
[344371825,1733385032634,-7152.37795908,7.5e-05,2]
[344371828,1733385032647,-467540.98827794,7.5e-05,2]
[344371832,1733385032683,-1978.159808,7.5e-05,2]
[344371997,1733385038063,-903.03545159,7.5e-05,2]
[344371998,1733385038209,-35271.43443005,7.5e-05,2]
[344371999,1733385038270,-8107.99999999,7.5e-05,2]
[344372000,1733385038282,-135846.91720405,7.5e-05,2]
[344372001,1733385038359,-2682.45301412,7.5e-05,2]
[344372063,1733385040409,-482.5363865,7.5e-05,2]
[344372064,1733385040420,-149421.4622522,7.5e-05,2]
[344372229,1733385043161,-21377.7,7.5e-05,2]
[344372230,1733385043171,-34788.6,7.5e-05,2]
[344372231,1733385043236,-3343.69608156,7.5e-05,2]
[344372232,1733385043248,-3251.0369217,7.5e-05,2]
[344372233,1733385043259,-8144.84518959,7.5e-05,2]
[344372240,1733385046143,-5142.76500001,7.5e-05,2]
[344372241,1733385046155,-565.139123,7.5e-05,2]
[344372242,1733385046167,-6615.377395,7.5e-05,2]
[344372243,1733385046178,-35899.5,7.5e-05,2]
[344372244,1733385046190,-1475.42938,7.5e-05,2]
[344372245,1733385046201,-25665.03563643,7.5e-05,2]
[344372246,1733385046223,-508.02171314,7.5e-05,2]
[344372247,1733385046235,-255.825,7.5e-05,2]
[344372248,1733385046246,-17152.88947269,7.5e-05,2]
[344372249,1733385046296,-788.03133383,7.5e-05,2]
[344372250,1733385046371,-751228.86115642,7.5e-05,2]
[344372251,1733385046383,-205097.81425869,7.5e-05,2]
[344372252,1733385046395,-16667.892,7.5e-05,2]
[344372259,1733385820615,190.0,0.000193,120]
[344372260,1733385859442,290.0,0.000182,60]
[344372261,1733385870786,150.0,0.00018974,120]
[344372263,1733385917533,2497.0,0.0001021,7]
[344372264,1733385929983,186.90345177,0.000193,120]
[344372265,1733385963631,-14170034.90671,0.0002,120]
[344372266,1733385963660,-30423.12,0.0002,120]
[344372267,1733385974110,-150.0,0.0002185,120]
[344372268,1733385974136,-1000.0,0.00021917,120]
[344372269,1733385974161,-1000.0,0.00021917,120]
[344372270,1733385974187,-1015.6393291,0.00021917,120]
[344372271,1733385974221,-450.0,0.00022,120]
[344372272,1733385974250,-750.0,0.00023,120]
[344372273,1733385986782,250.0,6.951e-05,2]
[344372274,1733385990854,150.0,0.00020801,120]
[344372279,1733386217971,23900.0,6.913e-05,2]
[344372296,1733386232246,-174.36,7.381e-05,2]
[344372297,1733386232256,-198.12,7.397e-05,2]
[344372298,1733386232265,-150.0,7.398e-05,2]
[344372299,1733386232274,-1000.0,7.399e-05,2]
[344372300,1733386232283,-8733.74360784,7.399e-05,2]
[344372301,1733386232295,-28227.16629216,7.399e-05,2]
[344372302,1733386232306,-600.23564375,7.473e-05,2]
[344372303,1733386232315,-326.8333271,7.473e-05,2]
[344372304,1733386232324,-353.55407749,7.473e-05,2]
[344372305,1733386232334,-177.87628315,7.473e-05,2]
[344372306,1733386232343,-217.96,7.488e-05,2]
[344372307,1733386232353,-136736.07471629,7.49e-05,2]
[344372308,1733386232362,-500.0,7.499e-05,2]
[344372309,1733386232372,-250000.0,7.499e-05,2]
[344372310,1733386232381,-42979.76134324,7.499e-05,2]
[344372311,1733386232391,-2527412.92539711,7.5e-05,2]
[344372312,1733386232402,-67499.99962871,7.5e-05,2]
[344372313,1733386232414,-26040.32049493,7.5e-05,2]
[344372314,1733386232425,-59601.20054108,7.5e-05,2]
[344372315,1733386232436,-207164.88373514,7.5e-05,2]
[344372316,1733386232446,-40400.57026316,7.5e-05,2]
[344372317,1733386234911,-586.64911969,7.5e-05,2]
[344372318,1733386235021,-50589.22060902,7.5e-05,2]
[344372319,1733386235075,-8022.152323,7.5e-05,2]
[344372332,1733386238220,-81748.88662185,7.5e-05,2]
[344372333,1733386238233,-2485.10474252,7.5e-05,2]
[344372334,1733386238274,-1930.15,7.5e-05,2]
[344372335,1733386238288,-2053.4,7.5e-05,2]
[344372336,1733386238338,-25794.08860025,7.5e-05,2]
[344372337,1733386238647,-5622.87885863,7.5e-05,2]
[344372481,1733386240275,-644.79999986,7.5e-05,2]
[344372482,1733386240288,-704.6,7.5e-05,2]
[344372483,1733386240301,-580.2222744,7.5e-05,2]
[344372503,1733386240754,-2050.741331,7.5e-05,2]
[344372506,1733386240767,-578.80000001,7.5e-05,2]
[344372508,1733386240783,-255.75087448,7.5e-05,2]
[344372572,1733386243317,-10266.84085558,7.5e-05,2]
[344372573,1733386243372,-2276.70464384,7.5e-05,2]
[344372574,1733386243386,-1104.812425,7.5e-05,2]
[344372575,1733386243398,-1230.11634,7.5e-05,2]
[344372576,1733386243411,-14453.26,7.5e-05,2]
[344372577,1733386243424,-2599.9960915,7.5e-05,2]
[344372578,1733386243449,-2563.5324635,7.5e-05,2]
[344372579,1733386243590,-7119.55181369,7.5e-05,2]
[344372580,1733386243603,-3016.06482378,7.5e-05,2]
[344372581,1733386243616,-1306.4500735,7.5e-05,2]
[344372582,1733386243629,-444.30250141,7.5e-05,2]
[344372583,1733386243698,-3466.866,7.5e-05,2]
[344372595,1733386246183,-1222455.43163206,7.5e-05,2]
[344372596,1733386246195,-61410.2796,7.5e-05,2]
[344372597,1733386246239,-496.04559706,7.5e-05,2]
[344372598,1733386246293,-477.435,7.5e-05,2]
[344372599,1733386246400,-25741.37999999,7.5e-05,2]
[344372600,1733386246507,-854.28,7.5e-05,2]
[344372601,1733386246565,-562854.34415669,7.5e-05,2]
[344372602,1733386246577,-500.68485631,7.5e-05,2]
[344372607,1733386290886,150.0,0.0002263,120]
[344372609,1733386607974,10000.0,0.0001602,30]
[344372610,1733386643637,40000.0,0.0001602,30]
[344372611,1733386710796,150.0,0.00019153,120]
[344372613,1733386790841,300.0,6e-05,2]
[344372614,1733386793015,600.0,6.1e-05,2]
[344372615,1733386795121,900.0,6.2e-05,2]
[344372616,1733386797214,1200.0,6.3e-05,2]
[344372617,1733386799327,1500.0,6.4e-05,2]
[344372618,1733386801436,300.0,6.5e-05,2]
[344372619,1733386803739,300.0,6.6e-05,2]
[344372620,1733386805716,300.0,6.7e-05,2]
[344372621,1733386807815,300.0,6.8e-05,2]
[344372622,1733386809914,600.0,6.9e-05,2]
[344372623,1733386885189,-250.0,7.345e-05,2]
[344372624,1733386885216,-1771.9096958,7.35e-05,2]
[344372625,1733386885238,-1884.729,7.35e-05,2]
[344372626,1733386885260,-174.32635499,7.35e-05,2]
[344372627,1733386885285,-1043.06522694,7.35e-05,2]
[344372628,1733386885308,-198.12,7.397e-05,2]
[344372629,1733386885329,-150.0,7.399e-05,2]
[344372630,1733386885349,-36960.9099,7.4e-05,2]
[344372631,1733386885371,-500.0,7.473e-05,2]
[344372632,1733386885391,-500.0,7.473e-05,2]
[344372633,1733386885413,-199.82883579,7.473e-05,2]
[344372634,1733386885434,-4888.92400974,7.499e-05,2]
[344372635,1733386885462,-5478.18697674,7.5e-05,2]
[344372636,1733386922636,67554.35,6.941e-05,2]
[344372638,1733387246102,-885.9548479,7.35e-05,2]
[344372639,1733387246125,-1079.95013758,7.35e-05,2]
[344372659,1733387433121,-442.9774239,7.35e-05,2]
[344372660,1733387433131,-150.0,7.35e-05,2]
[344372661,1733387433142,-618.91525353,7.351e-05,2]
[344372662,1733387433155,-1555.5979947,7.351e-05,2]
[344372663,1733387433185,-91418.48675177,7.351e-05,2]
[344372664,1733387433195,-500.0,7.4e-05,2]
[344372665,1733387433205,-36960.9099,7.4e-05,2]
[344372666,1733387433216,-245000.0,7.4e-05,2]
[344372667,1733387433226,-1963.96597367,7.4e-05,2]
[344372668,1733387433242,-1963.96597366,7.4e-05,2]
[344372669,1733387433253,-1194.88192352,7.4e-05,2]
[344372670,1733387433263,-287.0,7.452e-05,2]
[344372671,1733387433273,-500.0,7.473e-05,2]
[344372672,1733387433283,-500.0,7.473e-05,2]
[344372673,1733387433293,-503.90266997,7.473e-05,2]
[344372674,1733387433303,-500.0,7.473e-05,2]
[344372675,1733387433313,-217.96,7.481e-05,2]
[344372676,1733387433323,-21950.18311213,7.49e-05,2]
[344372677,1733387433333,-109881.7537573,7.5e-05,2]
[344372678,1733387433347,-10986.55331932,7.5e-05,2]
[344372679,1733387433361,-10468.8,7.5e-05,2]
[344372680,1733387433372,-7382.376725,7.5e-05,2]
[344372681,1733387433384,-6127.228,7.5e-05,2]
[344372682,1733387433398,-5695.5,7.5e-05,2]
[344372683,1733387433409,-36753.21001214,7.5e-05,2]
[344372684,1733387433421,-225940.00000002,7.5e-05,2]
[344372685,1733387433434,-7861.58125689,7.5e-05,2]
[344372686,1733387433447,-4351.45093378,7.5e-05,2]
[344372687,1733387433459,-102943.63509501,7.5e-05,2]
[344372688,1733387433480,-23397.20000018,7.5e-05,2]
[344372689,1733387433494,-922.7615,7.5e-05,2]
[344372690,1733387433506,-973.176,7.5e-05,2]
[344372691,1733387433519,-1700.71784844,7.5e-05,2]
[344372692,1733387433531,-430.68063875,7.5e-05,2]
[344372693,1733387433547,-39000.0,7.5e-05,2]
[344372729,1733387437527,-25720.0,7.5e-05,2]
[344372730,1733387437541,-5848.36682913,7.5e-05,2]
[344372731,1733387437571,-92.55141452,7.5e-05,2]
[344372732,1733387437582,-1140.63256854,7.5e-05,2]
[344372733,1733387437593,-1164.06,7.5e-05,2]
[344372734,1733387437644,-39065.32644831,7.5e-05,2]
[344372735,1733387437871,-293397.55010867,7.5e-05,2]
[344372747,1733387439390,-574520.01106112,7.5e-05,2]
[344372748,1733387439506,-3412.43261752,7.5e-05,2]
[344372749,1733387439517,-1541.9912002,7.5e-05,2]
[344372750,1733387439620,-1089.96693787,7.5e-05,2]
[344372751,1733387439682,-98558.0446279,7.5e-05,2]
[344372752,1733387440581,-674.08,7.5e-05,2]
[344372753,1733387440598,-356.034375,7.5e-05,2]
[344372754,1733387440612,-540.0,7.5e-05,2]
[344372755,1733387440624,-279.936614,7.5e-05,2]
[344372756,1733387440635,-525.848112,7.5e-05,2]
[344372759,1733387442480,-103171.71147281,7.5e-05,2]
[344372760,1733387442540,-7199.9999995,7.5e-05,2]
[344372761,1733387442551,-2967.68116406,7.5e-05,2]
[344372762,1733387442562,-1941.01849995,7.5e-05,2]
[344372763,1733387442574,-10276.0,7.5e-05,2]
[344372764,1733387442585,-2257.27656784,7.5e-05,2]
[344372765,1733387442664,-12056.46682,7.5e-05,2]
[344372766,1733387442675,-6344.0,7.5e-05,2]
[344372767,1733387442723,-1027.3,7.5e-05,2]
[344372768,1733387442744,-311832.0,7.5e-05,2]
[344372769,1733387442755,-1335489.39668924,7.5e-05,2]
[344372770,1733387442790,-9752.5,7.5e-05,2]
[344372771,1733387442855,-79804.81692127,7.5e-05,2]
[344372772,1733387442867,-6334.40429151,7.5e-05,2]
[344372773,1733387442910,-3327.74434031,7.5e-05,2]
[344372896,1733387445433,-159.04054974,7.499e-05,2]
[344372897,1733387445444,-1578.21159237,7.499e-05,2]
[344372898,1733387445454,-17788.17658949,7.5e-05,2]
[344372899,1733387445545,-930.444211,7.5e-05,2]
[344372900,1733387445677,-774.91,7.5e-05,2]
[344372901,1733387445698,-3853.49861859,7.5e-05,2]
[344372902,1733387445718,-389.32914756,7.5e-05,2]
[344372903,1733387445743,-391.95234,7.5e-05,2]
[344372904,1733387445755,-205758.12965491,7.5e-05,2]
[344372905,1733387445765,-51493.8658969,7.5e-05,2]
[344372906,1733387445776,-14039.711465,7.5e-05,2]
[344372907,1733387445787,-8827.1376,7.5e-05,2]
[344372908,1733387445798,-3895.776,7.5e-05,2]
[344372909,1733387445810,-464578.08638251,7.5e-05,2]
[344372911,1733387591324,500.0,6e-05,2]
[344372912,1733387593430,1000.0,6.1e-05,2]
[344372913,1733387595526,1600.0,6.2e-05,2]
[344372914,1733387597647,2100.0,6.3e-05,2]
[344372915,1733387599731,2600.0,6.4e-05,2]
[344372916,1733387601829,500.0,6.5e-05,2]
[344372917,1733387603968,500.0,6.6e-05,2]
[344372918,1733387606305,500.0,6.7e-05,2]
[344372919,1733387608195,500.0,6.8e-05,2]
[344372920,1733387610308,900.0,6.9e-05,2]
[344372922,1733387699192,38000.0,0.00023,120]
[344372923,1733387922711,150.0,0.00023,120]
[344372924,1733387923555,150.0,0.00023,120]
[344372925,1733387924028,150.0,0.00023,120]
[344372926,1733387924528,150.0,0.00023,120]
[344372927,1733387924696,150.0,0.00023,120]
[344372928,1733387925183,150.0,0.00023,120]
[344372929,1733387925740,150.0,0.00023,120]
[344372930,1733387926053,150.0,0.00023,120]
[344372931,1733387926605,150.0,0.00023,120]
[344372932,1733387927186,150.0,0.00023,120]
[344372933,1733387927753,150.0,0.00023,120]
[344372934,1733387928320,150.0,0.00023,120]
[344372935,1733387928716,150.0,0.00023,120]
[344372936,1733387929044,150.0,0.00023,120]
[344372938,1733387948397,150.0,0.00023,120]
[344372939,1733387949289,150.0,0.00023,120]
[344372940,1733387949710,150.0,0.00023,120]
[344372941,1733387950124,150.0,0.00023,120]
[344372942,1733387950549,150.0,0.00023,120]
[344372943,1733387950977,150.0,0.00023,120]
[344372944,1733387951456,150.0,0.00023,120]
[344372945,1733387951859,150.0,0.00023,120]
[344372946,1733387952289,150.0,0.00023,120]
[344372947,1733387952719,150.0,0.00023,120]
[344372952,1733388054927,250.0,6.928e-05,2]
[344372953,1733388105836,1007.50037107,7.3e-05,10]
[344372954,1733388142458,23900.0,6.928e-05,2]
[344372957,1733388328148,500.0,9.863e-05,7]
[344372958,1733388328816,500.0,9.863e-05,7]
[344372959,1733388329105,500.0,9.863e-05,7]
[344372960,1733388329402,500.0,9.863e-05,7]
[344372961,1733388329681,500.0,9.863e-05,7]
[344372962,1733388330295,500.0,9.863e-05,7]